Cogmind - Beta 12 --- EXPLORER MODE // 2023.03.19 @ 10:56:27 // Winter2019/RPGLIKE Player: Storm Mk9 Result: Destroyed by D-53 Grenadier with Mini Grenade Launcher Performance ------------- Evolutions (0) 0 Regions Visited (2) 400 Robots Destroyed (10) 50 Value Destroyed (282) 282 Prototype IDs (0) 0 Alien Tech Used (0) 0 Bonus (0) 0 TOTAL SCORE: 732 Bonus ------- None Cogmind --------- Core Integrity 0/600 Matter 299/300 Energy 383/400 System Corruption 0% Temperature Cool (0) Movement Treading (160) Location -10/Mines Parts ------- > --- POWER (2) -------- Ion Engine Ion Engine > --- PROPULSION (4) --- Light Treads Light Treads Light Treads > --- UTILITY (4) ------ Signal Interpreter Targeting Computer > --- WEAPON (2) ------- EM Pulse Gun Light Assault Rifle > --- INVENTORY (0) ---- (None) Peak State ------------ > --- POWER ------------ Ion Engine Ion Engine > --- PROPULSION ------- Light Treads Light Treads Light Treads > --- UTILITY ---------- Signal Interpreter Targeting Computer Light Armor Plating Light Armor Plating > --- WEAPON ----------- EM Pulse Gun Light Assault Rifle > --- INVENTORY -------- (None) [Rating: 11] Favorites ----------- Power Ion Engine Engine Ion Engine Propulsion Light Treads Treads Light Treads Utility Light Armor Plating Processor Signal Interpreter Protection Light Armor Plating Weapon EM Pulse Gun Energy Gun EM Pulse Gun Ballistic Gun Light Assault Rifle Build | -11 -10 -10 ------- Run | Jun Mat Min Slots Evolved 8 | 8 . . Power 1 | 1 . . Propulsion 3 | 3 . . Utility 3 | 3 . . Weapon 1 | 1 . . Parts Attached 18 | 10 7 1 Power 3 | 2 1 . Engine 3 | 2 1 . Core . | . . . Reactor . | . . . Propulsion 5 | 2 2 1 Treads 5 | 2 2 1 Leg . | . . . Wheel . | . . . Hover . | . . . Flight . | . . . Utility 7 | 4 3 . Device . | . . . Storage . | . . . Processor 2 | 2 . . Hackware . | . . . Protection 5 | 2 3 . Artifact . | . . . Weapon 3 | 2 1 . Energy Gun 1 | 1 . . Energy Cannon . | . . . Ballistic Gun 2 | 1 1 . Ballistic Cannon . | . . . Launcher . | . . . Special Weapon . | . . . Impact Weapon . | . . . Slashing Weapon . | . . . Piercing Weapon . | . . . Special Melee Weapon . | . . . Unidentified Prototypes . | . . . Parts Lost 2 | . . 2 Power . | . . . Propulsion . | . . . Utility 2 | . . 2 Weapon . | . . . Highest Loss Streak 2 | . . 2 To Critical Strikes . | . . . Average Slot Usage (%) 83 | . 81 84 Engine 16 | . 16 16 Treads 17 | . 15 18 Processor 16 | . 16 16 Protection 15 | . 15 15 Energy Gun 8 | . 8 8 Ballistic Gun 8 | . 8 8 Naked Turns . | . . . Heaviest Build 19 | 19 19 19 Greatest Support 60 | 40 40 60 Greatest Overweight (x) 5 | . 5 . Average Overweight (x) . | . . . Largest Inventory Capacity . | . . . Average Capacity . | . . . Most Carried . | . . . Average Carried . | . . . Final Capacity . | . . . Final Carried . | . . . Class Distribution -------------------- 100% | Hacker-Mutant Dominant Class ---------------- Hacker-Mutant | -10/Materials Hacker-Mutant | -10/Mines Resources | -11 -10 -10 ----------- Run | Jun Mat Min Matter Collected 417 | 226 163 28 Remotely . | . . . Salvage Created 403 | . 240 163 Parts 18 | . 14 4 Haulers Intercepted . | . . . Recyclers Shooed . | . . . Parts Field Recycled . | . . . Retrieved Matter . | . . . Parts Self-Destructed . | . . . Prevented . | . . . Kills | -11 -10 -10 ------- Run | Jun Mat Min Combat Hostiles Destroyed 11 | . 6 5 Guns 10 | . 5 5 AOE 1 | . 1 . Classes Destroyed 5 | . 4 1 Recycler 1 | . 1 . Watcher 1 | . 1 . Swarmer 2 | . 2 . Grunt 6 | . 4 2 Assembled 3 | . . 3 Best Kill Streak 5 | . 5 3 Combat Bots Only 4 | . 4 3 Max Kills in Single Turn 2 | . 2 1 Gunslinging . | . . . Exploded 1 | . 1 . Melee . | . . . Uniques/NPCs Destroyed . | . . . Combat | -11 -10 -10 -------- Run | Jun Mat Min Damage Taken 977 | . 73 904 Core 658 | . 41 617 Absorbed by Shields . | . . . Redirected to Core 558 | . 35 523 Core Remaining (%) 100 | 100 . . Volleys Fired 38 | . 19 19 Largest 2 | . 2 2 Hottest 60 | . 60 60 Shots Fired 76 | . 38 38 Gun 76 | . 38 38 Cannon . | . . . Launcher . | . . . Special . | . . . Kinetic 38 | . 19 19 Thermal . | . . . Explosive . | . . . Electromagnetic 38 | . 19 19 Robot Hit Streak 23 | . 11 23 Robot Miss Streak 1 | . 1 1 Penetration Max . | . . . Secondary Targets . | . . . Shots Hit Robots 60 | . 30 30 Core Hits 26 | . 13 13 Critical Kills . | . . . Critical Parts Destroyed . | . . . Critical Strikes 1 | . 1 . Corrupt 1 | . 1 . Melee Attacks . | . . . Impact . | . . . Slashing . | . . . Piercing . | . . . Sneak Attacks . | . . . Combat Hostiles . | . . . Follow-up Attacks . | . . . Damage Inflicted 721 | . 430 291 Guns 610 | . 319 291 Cannons . | . . . Explosions 111 | . 111 . Melee . | . . . Ramming . | . . . Kinetic 232 | . 107 125 Thermal 111 | . 111 . Explosive . | . . . Electromagnetic 378 | . 212 166 Impact . | . . . Slashing . | . . . Piercing . | . . . Highest Corruption . | . . . Average Corruption . | . . . Corruption Purged . | . . . Corruption Blocked . | . . . Overload Shots . | . . . Overflow Damage . | . . . Projectiles . | . . . Explosions . | . . . Melee . | . . . Knockbacks . | . . . Impact . | . . . Kinetic . | . . . Secondary . | . . . Self-Inflicted Damage . | . . . Shots . | . . . Rammed . | . . . Targets Rammed . | . . . Kicked . | . . . Crushed . | . . . Highest Temperature 207 | . 48 207 Average Temperature 48 | . 17 70 Received Heat Transfer 282 | . 18 264 Siege Activations . | . . . Robots Corrupted . | . . . Combat Hostiles . | . . . Parts Fried . | . . . Impact Corruptions . | . . . Robots Melted . | . . . Combat Hostiles . | . . . Parts Melted . | . . . Heat Transferred 100 | . 100 . Parts Sabotaged . | . . . Parts Stolen . | . . . Parts Stripped . | . . . Power Chain Reactions 2 | . 2 . Missiles Intercepted . | . . . Alert | -11 -10 -10 ------- Run | Jun Mat Min Peak Influence 191 | . 191 117 Initial 52 | . . 52 Average 89 | . 117 79 Maximum Alert Level . | . . . Low Security (%) 100 | 100 100 100 Level 1 . | . . . Level 2 . | . . . Level 3 . | . . . Level 4 . | . . . Level 5 . | . . . High Security . | . . . Max Security . | . . . Squads Dispatched . | . . . Investigation . | . . . Extermination . | . . . Reinforcement . | . . . Assault . | . . . Garrison . | . . . Intercept . | . . . Searches Triggered . | . . . Construction Impeded . | . . . Haulers Reinforced . | . . . Active Scanning Responses . | . . . Cargo Convoy Interrupts . | . . . Stealth | -11 -10 -10 --------- Run | Jun Mat Min Distress Signals . | . . . Communications Jammed . | . . . Distress Signals . | . . . Times Spotted 34 | . 10 24 Peak Tracking Total 19 | . 3 19 Tactical Retreats 1 | . . 1 Traps | -11 -10 -10 ------- Run | Jun Mat Min Traps Triggered 4 | . 4 . Indirectly . | . . . Trap Hack Attempts . | . . . Triggered . | . . . Disarmed . | . . . Reprogrammed . | . . . Reused . | . . . Traps Extracted . | . . . Installed . | . . . Triggered . | . . . Machines | -11 -10 -10 ---------- Run | Jun Mat Min Machines Disabled 1 | . 1 . Max in Single Turn 1 | . 1 . Machines Repaired . | . . . Machines Sabotaged . | . . . Overloaded Fab Kills . | . . . Hacking | -11 -10 -10 --------- Run | Jun Mat Min Machines Accessed . | . . . Terminals . | . . . Fabricators . | . . . Repair Stations . | . . . Recycling Units . | . . . Scanalyzers . | . . . Garrison Access . | . . . Total Hacks . | . . . Successful . | . . . Failed . | . . . Catastrophic . | . . . Database Lockouts . | . . . Manual . | . . . Terminals . | . . . Fabricators . | . . . Repair Stations . | . . . Recycling Units . | . . . Scanalyzers . | . . . Garrison Access . | . . . Terminal Hacks . | . . . Fabricator Hacks . | . . . Repair Station Hacks . | . . . Recycling Unit Hacks . | . . . Scanalyzer . | . . . Garrison Access Hacks . | . . . Unauthorized Hacks . | . . . Terminals . | . . . Fabricators . | . . . Repair Stations . | . . . Recycling Units . | . . . Scanalyzers . | . . . Garrison Access . | . . . Data Cores Recovered . | . . . Used . | . . . Hacking Detections . | . . . Full Trace Events . | . . . Feedback Events . | . . . Feedback Blocked . | . . . Robot Schematics Acquired . | . . . Robots Built . | . . . Authchips . | . . . Time . | . . . Total Robot Build Rating . | . . . Part Schematics Acquired . | . . . Parts Built . | . . . Authchips . | . . . Time . | . . . Total Part Build Rating . | . . . Parts Repaired . | . . . Time . | . . . Parts Recycled . | . . . Recycled Matter . | . . . Retrieved Matter . | . . . Retrieved Components . | . . . Parts Scanalyzed . | . . . Part Schematics Acquired . | . . . Parts Damaged . | . . . Bothacking | -11 -10 -10 ------------ Run | Jun Mat Min Used RIF Installer . | . . . Robots Hacked . | . . . Non-combat . | . . . Combat . | . . . Robot Hacks Applied . | . . . Relay Couplers Released . | . . . Fabnet Peak Effective % . | . . . Robots Rewired . | . . . Allies Hacked . | . . . Hacks Repelled . | . . . Allies | -11 -10 -10 -------- Run | Jun Mat Min Total Allies . | . . . Largest Group . | . . . Highest-Rated Group . | . . . Highest-Rated Ally . | . . . Total Orders . | . . . Ally Attacks . | . . . Total Damage . | . . . Kills . | . . . Allies Corrupted . | . . . Allies Melted . | . . . Intel | -11 -10 -10 ------- Run | Jun Mat Min Robot Analysis Total . | . . . Derelict Logs Recovered . | . . . Drone Launches . | . . . Drone Recoveries . | . . . Exploration | -11 -10 -10 ------------- Run | Jun Mat Min Turns Passed 911 | 68 389 454 Spaces Moved 443 | 35 187 221 Core 5 | 2 3 . Treads 438 | 33 184 221 Legs . | . . . Wheels . | . . . Hover . | . . . Flight . | . . . Fastest Speed 50 | 50 160 160 Average Speed 160 | 153 161 160 Slowest Speed 300 | 160 300 160 Overloaded Moves . | . . . Propulsion Burnouts . | . . . Robots Hopped . | . . . Cave-ins Triggered . | . . . Exploration Rate (%) 32 | 4 48 46 Regions Visited 2 Branch Regions 1 Pre-discovered Areas . | . . . Known Exits Taken 2 | 1 1 . Unknown Exits Taken . | . . . Scrap Searched . | . . . Spaces Dug . | . . . Terrain Destroyed 5 | . 5 . Melee . | . . . Projectile . | . . . AOE 5 | . 5 . Terrain Rammed . | . . . Walls Destroyed . | . . . Machines Disabled . | . . . Actions | -11 -10 -10 --------- Run | Jun Mat Min Total 569 | 44 236 289 Wait 66 | . 19 47 Move 441 | 34 186 221 Hop . | . . . Pick Up . | . . . Fast Attach 18 | 10 7 1 Attach . | . . . Detach . | . . . Swap . | . . . Drop . | . . . Fire 38 | . 19 19 Melee . | . . . Ram . | . . . Kick . | . . . Crush . | . . . Escape Stasis . | . . . Rewire . | . . . Trap . | . . . Miscellaneous 6 | . 5 1 Route ------- -11/Junkyard -10/Materials -10/Mines (discovered 2 exits: *Mat x2) History --------- Turn | Location | Event 1 | -11/Junkyard | Upgraded with Power slot (x1) 1 | -11/Junkyard | Upgraded with Propulsion slot (x3) 1 | -11/Junkyard | Upgraded with Utility slot (x3) 1 | -11/Junkyard | Upgraded with Weapon slot (x1) 7 | -11/Junkyard | Identified exit to Materials 7 | -11/Junkyard | Discovered exit to Materials (range 16) 69 | -11/Junkyard | Entered Materials 329 | -10/Materials | Build established: Hacker-Mutant 434 | -10/Materials | Identified exit to Mines 434 | -10/Materials | Discovered exit to Mines (range 16) 458 | -10/Materials | Entered Mines 484 | -10/Mines | Identified exit to Materials 484 | -10/Mines | Discovered exit to Materials (range 8) 522 | -10/Mines | Discovered exit to Materials (range 7) 647 | -10/Mines | Found a damaged Exp. Sensor Array with a note attached 760 | -10/Mines | Received a Rocket Launcher from a helpful Derelict 846 | -10/Mines | Assembled infested the area 879 | -10/Mines | Core integrity fell below 50% 901 | -10/Mines | Core integrity fell below 20% 912 | -10/Mines | Destroyed by D-53 Grenadier with Mini Grenade Launcher Last Messages --------------- 00875_ as-49805 destroyed. 00875_ as-79366 destroyed. 00875_ as-31064 destroyed. 00876_ Acquired 11 matter. 00876_ Acquired 7 matter. 00877_ as-80021 destroyed. 00877_ as-10996 destroyed. 00877_ as-84643 destroyed. 00877_ as-67819 destroyed. 00877_ as-38582 destroyed. 00879_ Used Protomatter to restore core integrity (+12, depleted) 00880_ as-97889 destroyed. 00880_ as-63127 destroyed. 00880_ as-25192 destroyed. 00882_ as-29516 destroyed. 00882_ as-28144 destroyed. 00882_ Lgt. Armor Plating destroyed. 00886_ The unstable cave ceiling collapses. 00900_ Lgt. Armor Plating destroyed. 00904_ The unstable cave ceiling collapses. Map ----- +----------------------------------------------------+ | #????# ### ## !##??????????????? | | ###### ## ##?????????????? | | # ## # #?????????????? | | # ## ##????????????? | | #????????????? | | #### #????????????? | | #####???# #????????????? | | ##???????# #????????????? | | ##???????### #????????????? | | #????????# #????????????? | | ##???????## #????????????? | | ###??????# ##???????????? | | ##?????# # #???????????? | | ##????# #???????????? | | #????# ####????????? | | #????## ##????????? | | # ##????# ###??????? | | # ##?????## d ##??????? | | # ##???????# d ##?????? | | # #????????# ###???? | | # #????????### #???? | | #++##?????????## ##??? | | #??????????### #??? | | #????????????# < #??? | | #????????????#### ##??? | | #??????????????# @ #??? | | ##??????????????## #??? | | ####????????????????## #??? | | ?????????????????????## #??? | | ??????????????????????## #??? | | ???????????????????????# ##??? | | ???????????????????????## ##???? | | ?????????????????????????###????? | | ????????????????????????????????? | | | | | | | | | | | | | | | | | | | | | | | | | | | | | | | | | +----------------------------------------------------+ Best States ------------- Heat Dissipation 37 Energy Generation 15 Energy Capacity 400 Matter Stores 300 Matter Capacity 300 Sight Range 16 Terrain Scan Density 10 Armor Coverage 300 Resistance: KI 35 Resistance: TH 35 Resistance: EX 35 Resistance: EM 35 Resistance: I 35 Resistance: S 35 Resistance: P 35 Evasion (%) 40 Targeting Accuracy 5 Recoil Reduction 3 Offensive Hacking 20 Item Schematics ----------------- None Robot Schematics ------------------ None Fabricated ------------ Nothing Alien Tech Used ----------------- None Achievements -------------- None Challenges ------------ None RPGLIKE | -11 -10 -10 --------- Run | Jun Mat Min Levels Raised . | . . . XP Earned 7485 | 6000 735 750 XP Spent 5920 | 5920 . . Upgrades 10 | 10 . . Power Slot 1 | 1 . . Propulsion Slot 3 | 3 . . Utility Slot 3 | 3 . . Weapon Slot 1 | 1 . . Heat Dissipation 2 | 2 . . Protomatter Created 130 | . 97 33 Integrity Restored 78 | . 66 12 Core 53 | . 41 12 Parts 25 | . 25 . Protomatter Decayed 84 | . 71 13 Game ------ Seed ShieldCargoKatana Manual? 0 Play Time 00:09:17 Cumulative 133.4 hours Start 2023.03.19 @ 10:49:54 End 2023.03.19 @ 10:56:27 Sessions 1 Manual Loads 0 Difficulty Explorer Special Mode Winter2019/RPGLIKE Game No. 59 Rogue 13 Adventurer 0 Explorer 46 Win Type - Total 5 Types 1/1/0/2/0/0/0/0/1 Lore% 54 Gallery% 55 Achievement% 59 Wizard Run 0 Options --------- ASCII 0 Keyboard 0 Movement Mouse Keybinds 0 Fullscreen 2 Font 18/SmallcapsGlow Map View 76x50 Tactical HUD 1 Map Filters NONE Filters NONE Steam 1 RUN: d0b77860-1fdc-4895-8f03-3648cc3a8709